bitfinex-derivatives/quotes_BTCF0:USTF0_20260207
["timestamp","ask_amount","ask_price","bid_price","bid_amount"]
[1770449122513,0.014693,68105.0,68025.0,0.01471]
[1770449122514,0.014697,68087.0,68059.0,0.55562984]
[1770449122715,0.014695,68093.0,68059.0,0.55562984]
[1770449123018,0.014696,68090.0,68059.0,0.55562984]
[1770449124607,0.0002,68097.0,68059.0,0.52862984]
[1770449124907,0.0002,68097.0,67996.0,0.21447045]
[1770449124908,0.014702,68060.0,68029.0,0.55562984]
[1770449125121,0.52640794,68064.0,68015.0,0.55562984]
[1770449125313,0.014703,68057.0,68018.0,0.014711]
[1770449125512,0.52640794,68050.0,68001.0,0.55562984]
[1770449125708,0.52640794,68037.0,67985.0,0.55562984]
[1770449125908,0.52640794,68033.0,67986.0,0.073594]
[1770449126116,0.52640794,68033.0,67985.0,0.55562984]
[1770449126117,0.014706,68044.0,67998.0,0.55562984]
[1770449126423,0.014708,68033.0,67984.0,0.55562984]
[1770449126719,0.52640794,68040.0,68006.0,0.014714]
[1770449126914,0.52660794,68040.0,67997.0,0.55562984]
[1770449127111,0.0002,68040.0,68005.0,0.55562984]
[1770449127421,0.014707,68039.0,68005.0,0.55562984]
[1770449127715,0.52760794,68040.0,67993.0,0.014717]
[1770449127913,0.014712,68018.0,67988.0,0.55562984]
[1770449128111,0.52640794,68036.0,67993.0,0.55562984]
[1770449128417,0.014708,68033.0,67994.0,0.014717]
[1770449128618,0.014708,68033.0,67993.0,0.55562984]
[1770449128619,0.52640794,68036.0,67993.0,0.55562984]
[1770449128812,0.014709,68032.0,67995.0,0.014716]
[1770449129012,0.52640794,68036.0,68000.0,0.014715]
[1770449129314,0.014709,68031.0,67994.0,0.014717]
[1770449129616,0.52660794,68036.0,67976.0,0.55562984]
[1770449129617,0.014713,68010.0,67976.0,0.55562984]
[1770449129808,0.014714,68006.0,67976.0,0.55562984]
[1770449130013,0.014713,68011.0,67976.0,0.57035084]
[1770449130214,0.014705,68047.0,67954.0,0.088353]
[1770449130215,0.52640794,68043.0,67997.0,0.014716]
[1770449130416,0.52640794,68043.0,67981.0,0.55562984]
[1770449130609,0.52640794,68043.0,68011.0,0.014713]
[1770449130809,0.52640794,68043.0,68001.0,0.55562984]
[1770449131011,0.0002,68044.0,68029.0,0.014709]
[1770449131315,0.001,68043.0,68010.0,0.55562984]
[1770449131507,0.161562,68131.0,68026.0,0.55562984]
[1770449131508,0.52640794,68070.0,68026.0,0.55562984]
[1770449131912,0.54110794,68070.0,68033.0,0.014708]
[1770449132207,0.54110794,68070.0,68011.0,0.014713]
[1770449132208,0.52640794,68053.0,68002.0,0.014715]
[1770449132408,0.52640794,68056.0,68005.0,0.55562984]
[1770449132618,0.52640794,68056.0,68021.0,0.014711]
[1770449132922,0.52640794,68056.0,68015.0,0.55562984]
[1770449133218,0.07352,68055.0,68002.0,0.014715]
[1770449133417,0.014708,68033.0,68001.0,0.55562984]
[1770449133814,0.52640794,68036.0,67987.0,0.55562984]
[1770449134314,0.0002,68052.0,67960.0,0.014724]
[1770449134315,0.52640794,68022.0,67973.0,0.55562984]
[1770449134612,0.52640794,68022.0,67985.0,0.014718]
[1770449134815,0.014711,68021.0,67989.0,0.014718]
[1770449135012,0.52640794,68022.0,67988.0,0.014718]
[1770449135220,0.54111894,68022.0,67988.0,0.014718]
[1770449135421,0.54111894,68022.0,67973.0,0.55562984]
[1770449135422,0.014712,68017.0,67981.0,0.014719]
[1770449135712,0.014711,68021.0,67988.0,0.014718]
[1770449135916,0.014712,68018.0,67983.0,0.014719]
[1770449136114,0.014712,68018.0,67987.0,0.014718]
[1770449136311,0.014708,68034.0,68000.0,0.014715]
[1770449136923,0.54349955,68037.0,67995.0,0.014716]
[1770449137128,0.54349955,68037.0,67983.0,0.55035912]
[1770449137129,0.55820755,68034.0,68003.0,0.014715]
[1770449137316,0.54349955,68034.0,68003.0,0.014715]
[1770449137525,0.54349955,68034.0,68008.0,0.014714]
[1770449138021,0.55820755,68034.0,67988.0,0.55035912]
[1770449138227,0.54349955,68048.0,67993.0,0.55035912]
[1770449138520,0.54349955,68048.0,67990.0,0.1521901]
[1770449138521,0.54349955,68048.0,67995.0,0.55035912]
[1770449138712,0.014706,68044.0,68007.0,0.014714]
[1770449138912,0.014706,68044.0,67995.0,0.55035912]
[1770449138913,0.014706,68044.0,68010.0,0.014713]
[1770449139126,0.014706,68043.0,68010.0,0.014713]
[1770449139419,0.073507,68067.0,68000.0,0.15150015]
[1770449139420,0.54349955,68067.0,68000.0,0.15150015]
[1770449139618,0.014899,68078.0,68022.0,0.014711]
[1770449139619,0.014703,68056.0,68022.0,0.014711]
[1770449139820,0.014704,68053.0,68023.0,0.01471]
[1770449140126,0.55820255,68060.0,68026.0,0.01471]
[1770449140315,0.0002,68062.0,68039.0,0.014707]
[1770449140619,0.0002,68062.0,68033.0,0.014708]
[1770449140826,0.014706,68045.0,68012.0,0.014713]
[1770449141017,0.014707,68038.0,68008.0,0.55035912]
[1770449141212,0.54349955,68042.0,67993.0,0.55035912]
[1770449141414,0.014708,68034.0,68001.0,0.014715]
[1770449141617,0.54349955,68037.0,67997.0,0.014716]
[1770449141817,0.54349955,68037.0,68000.0,0.014715]
[1770449141818,0.014708,68036.0,68000.0,0.014715]
[1770449142022,0.54349955,68036.0,68000.0,0.014715]
[1770449142318,0.54349955,68036.0,67993.0,0.55035912]
[1770449142518,0.54349955,68051.0,67996.0,0.55035912]
[1770449142719,0.54349955,68051.0,68027.0,0.014709]
[1770449142926,0.014705,68050.0,68018.0,0.014711]
[1770449143122,0.014706,68043.0,68014.0,0.014712]
[1770449143420,0.014706,68043.0,68009.0,0.014713]
[1770449143620,0.014708,68036.0,68002.0,0.014715]
[1770449143818,0.55820555,68045.0,68015.0,0.014712]
[1770449144024,0.54349955,68045.0,68008.0,0.014713]
[1770449144220,0.014706,68044.0,68011.0,0.014713]
[1770449144418,0.014706,68044.0,67996.0,0.55035912]
[1770449144626,0.014707,68041.0,67996.0,0.55035912]
[1770449145326,0.014709,68031.0,67997.0,0.014716]
[1770449145629,0.54349955,68036.0,68006.0,0.014714]
[1770449145819,0.014709,68032.0,68001.0,0.014715]
[1770449146623,0.014706,68045.0,68002.0,0.55035912]
[1770449146825,0.014707,68038.0,68008.0,0.014714]
[1770449147030,0.014705,68047.0,67989.0,0.21318686]
[1770449147216,0.54349955,68033.0,67987.0,0.55035912]
[1770449147523,0.014707,68039.0,67993.0,0.52407312]
[1770449147826,0.54349955,68047.0,68003.0,0.014715]
[1770449148018,0.54349955,68047.0,67993.0,0.52407312]
[1770449148019,0.014709,68032.0,67993.0,0.52407312]
[1770449148221,0.014707,68038.0,68008.0,0.014714]
[1770449148924,0.014708,68034.0,68006.0,0.014714]
[1770449149121,0.55820655,68038.0,68009.0,0.014713]
[1770449149329,0.0002,68050.0,68006.0,0.56461349]
[1770449149622,0.014905,68050.0,68018.0,0.014711]
[1770449149827,0.0002,68050.0,68024.0,0.01471]
[1770449150320,0.54349955,68052.0,68024.0,0.01471]
[1770449150627,0.014705,68050.0,68019.0,0.014711]
[1770449150832,0.0147,68072.0,68010.0,0.55035912]
[1770449150833,0.014707,68039.0,68010.0,0.55035912]
[1770449151017,0.014708,68033.0,68006.0,0.001]
[1770449151424,0.01471,68026.0,68006.0,0.001]
[1770449151628,0.54349955,68032.0,67992.0,0.014717]
[1770449151829,0.0002,68051.0,67981.0,0.21318686]
[1770449151830,0.014706,68043.0,68000.0,0.15150015]
[1770449152129,0.0002,68051.0,68008.0,0.55035912]
[1770449152324,0.0002,68051.0,68010.0,0.76354598]
[1770449152523,0.54349955,68055.0,68017.0,0.014712]
[1770449152730,0.54349955,68069.0,68043.0,0.014706]
[1770449152927,0.54349955,68069.0,68021.0,0.014711]
[1770449152928,0.54349955,68083.0,68054.0,0.014704]
[1770449153122,0.014698,68081.0,68050.0,0.014704]
[1770449153323,0.0002,68084.0,68062.0,0.014702]
[1770449153523,0.014699,68075.0,68045.0,0.21318686]
[1770449153819,0.54369955,68084.0,68041.0,0.21318686]
[1770449153820,0.54349955,68084.0,68041.0,0.21318686]
[1770449154124,0.014699,68077.0,68044.0,0.014706]
[1770449154317,0.0002,68107.0,68044.0,0.014706]
[1770449154318,0.0002,68107.0,68044.0,0.55035912]
[1770449154620,0.014696,68091.0,68060.0,0.15150015]
[1770449154828,0.014691,68115.0,68043.0,0.5506274]
[1770449154829,0.014698,68082.0,68043.0,0.5506274]
[1770449155123,0.0147,68072.0,68036.0,0.21318686]
[1770449155323,0.014701,68068.0,68030.0,0.5359214]
[1770449155633,0.014702,68064.0,68026.0,0.01471]
[1770449156022,0.55820255,68058.0,68020.0,0.014711]
[1770449156418,0.54349955,68058.0,68030.0,0.001]
[1770449156721,0.55819955,68070.0,68031.0,0.014709]
[1770449156919,0.54349955,68062.0,68030.0,0.001]
[1770449157129,0.014704,68053.0,68017.0,0.5359214]
[1770449157327,0.54349955,68054.0,68018.0,0.014711]
[1770449157529,0.01887589,68043.0,68018.0,0.014711]
[1770449157826,0.01887589,68043.0,68005.0,0.28942484]
[1770449158128,0.54349955,68054.0,68005.0,0.28942484]
[1770449158129,0.54349955,68051.0,68016.0,0.014712]
[1770449158326,0.54349955,68051.0,68025.0,0.01471]
[1770449158527,0.54349955,68065.0,68037.0,0.014707]
[1770449158726,0.54349955,68059.0,68020.0,0.53610431]
[1770449158920,0.014704,68055.0,68020.0,0.53610431]
[1770449159327,0.55820355,68055.0,68009.0,0.28942484]
[1770449159532,0.014706,68044.0,68007.0,0.28942484]
[1770449159733,0.54349955,68048.0,68025.0,0.001]
[1770449160033,0.014707,68042.0,68025.0,0.001]
[1770449160235,0.014709,68031.0,67994.0,0.014717]
[1770449160430,0.54349955,68049.0,68009.0,0.54117404]
[1770449160930,0.014703,68060.0,68013.0,0.54017404]
[1770449161137,0.55820255,68058.0,68010.0,0.54017404]
[1770449161319,0.073497,68077.0,68017.0,0.014712]
[1770449161320,0.014705,68048.0,68017.0,0.014712]
[1770449161520,0.55820455,68048.0,68011.0,0.014713]
[1770449161728,0.55820455,68048.0,68015.0,0.014712]
[1770449161929,0.001,68042.0,68015.0,0.014712]
[1770449162133,0.014899,68077.0,68015.0,0.6295017]
[1770449162134,0.54349955,68061.0,68015.0,0.6295017]
[1770449162427,0.55820255,68056.0,68023.0,0.01471]
[1770449162826,0.54349955,68075.0,68030.0,0.014709]
[1770449163033,0.54349955,68071.0,68024.0,0.5002267]
[1770449163234,0.014701,68067.0,68024.0,0.5002267]
[1770449163433,0.55819955,68071.0,68039.0,0.014707]
[1770449163734,0.0147,68072.0,68040.0,0.014707]
[1770449164030,0.54349955,68074.0,68035.0,0.5002267]
[1770449164231,0.014897,68085.0,68041.0,0.50153219]
[1770449164535,0.014897,68085.0,68032.0,0.014708]
[1770449164536,0.54349955,68083.0,68032.0,0.014708]
[1770449164737,0.014702,68062.0,68029.0,0.50153219]
[1770449164923,0.014703,68058.0,68029.0,0.50153219]
[1770449165130,0.0002,68080.0,68025.0,0.01471]
[1770449165131,0.014703,68059.0,68025.0,0.01471]
[1770449165735,0.54349955,68063.0,68023.0,0.01471]
[1770449165935,0.55370331,68049.0,68009.0,0.28942484]
[1770449166240,0.55370331,68072.0,68029.0,0.001]
[1770449166530,0.014702,68061.0,68030.0,0.014709]
[1770449166734,0.55370331,68067.0,68029.0,0.001]
[1770449166927,0.55370331,68062.0,68023.0,0.001]
[1770449167329,0.55370331,68062.0,68024.0,0.51417923]
[1770449167642,0.55370331,68062.0,68031.0,0.014709]
[1770449167841,0.55370331,68062.0,68034.0,0.014708]
[1770449168335,0.55370331,68062.0,68024.0,0.51417923]
[1770449168540,0.55370331,68062.0,68033.0,0.014708]
[1770449168728,0.55370331,68062.0,68040.0,0.014707]
[1770449168932,0.0002,68081.0,68052.0,0.52349413]
[1770449169136,0.0002,68081.0,68027.0,0.95136]
[1770449169137,0.55370331,68102.0,68025.0,0.1537272]
[1770449169341,0.55370331,68102.0,67984.0,0.00010753]
[1770449169342,0.014709,68029.0,67995.0,0.0002]
[1770449169527,0.01471,68027.0,67995.0,0.0002]
[1770449169725,0.54024823,68031.0,67995.0,0.0002]
[1770449169726,0.014713,68013.0,67995.0,0.0002]
[1770449170033,0.01471,68023.0,67995.0,0.0002]
[1770449170228,0.54024823,68016.0,67966.0,0.55809262]
[1770449170435,0.54024823,68016.0,67977.0,0.55809262]
[1770449170727,0.014706,68042.0,67977.0,0.51709262]
[1770449170927,0.014713,68014.0,67982.0,0.014719]
[1770449171133,0.014711,68019.0,67977.0,0.51709262]
[1770449171533,0.014709,68028.0,67992.0,0.014717]
[1770449171832,0.54024823,68035.0,67995.0,0.014716]
[1770449171833,0.01471,68025.0,67995.0,0.014716]
[1770449172137,0.01471,68027.0,67981.0,0.55809262]
[1770449172332,0.52599885,68018.0,67976.0,0.01472]
[1770449172535,0.014716,67999.0,67966.0,0.014723]
[1770449172735,0.52599885,68006.0,67960.0,0.014724]
[1770449172926,0.014716,67998.0,67966.0,0.014723]
[1770449173127,0.014715,68003.0,67966.0,0.014723]
[1770449173332,0.52599885,68006.0,67955.0,0.55939896]
[1770449173541,0.52599885,68001.0,67961.0,0.014724]
[1770449174042,0.52599885,67999.0,67967.0,0.014723]
[1770449174338,0.52599885,67999.0,67970.0,0.014722]
[1770449174538,0.52599885,67999.0,67959.0,0.55939896]
[1770449174740,0.54071485,67999.0,67961.0,0.014724]
[1770449174939,0.54071485,67996.0,67966.0,0.001]
[1770449175144,0.52599885,67996.0,67968.0,0.014722]
[1770449175540,0.52599885,68024.0,67972.0,0.014721]
[1770449175831,0.52599885,68009.0,67972.0,0.014721]
[1770449176238,0.52599885,68009.0,67959.0,0.55939896]
[1770449176239,0.54071285,68009.0,67976.0,0.014721]
[1770449176637,0.014716,67995.0,67968.0,0.001]
[1770449176942,0.01471,68024.0,67987.0,0.014718]
[1770449177235,0.54071185,68012.0,67977.0,0.01472]
[1770449177435,0.52599885,68008.0,67968.0,0.001]
[1770449177631,0.52599885,67975.0,67931.0,0.55939896]
[1770449177829,0.52599885,68000.0,67945.0,0.55939896]
[1770449178037,0.52599885,67983.0,67945.0,0.57412596]
[1770449178242,0.073577,68002.0,67945.0,0.57412596]
[1770449178243,0.52599885,67982.0,67945.0,0.55939896]
[1770449178542,0.52599885,67982.0,67946.0,0.014727]
[1770449178739,0.52599885,67982.0,67950.0,0.014726]
[1770449178939,0.52599885,67982.0,67919.0,0.014733]
[1770449178940,0.014721,67977.0,67940.0,0.014728]
[1770449179143,0.52599885,67971.0,67935.0,0.001]
[1770449179338,0.52599885,67964.0,67935.0,0.001]
[1770449179533,0.014723,67963.0,67923.0,0.014732]
[1770449179842,0.52599885,67954.0,67917.0,0.014733]
[1770449180339,0.52599885,67954.0,67906.0,0.55939896]
[1770449180340,0.52599885,67949.0,67912.0,0.014734]
[1770449180537,0.52599885,67949.0,67916.0,0.014733]
[1770449180936,0.52599885,67949.0,67891.0,0.55939896]
[1770449181140,0.52599885,67947.0,67895.0,0.55939896]
[1770449181336,0.52599885,67945.0,67895.0,0.55939896]
[1770449181537,0.52599885,67943.0,67900.0,0.014737]
[1770449181741,0.52599885,67939.0,67904.0,0.014736]
[1770449182136,0.52599885,67952.0,67914.0,0.014734]
[1770449182333,0.52599885,67950.0,67909.0,0.014735]
[1770449182738,0.52599885,67950.0,67898.0,0.55939896]
[1770449182739,0.52599885,67948.0,67923.0,0.014732]
[1770449182941,0.52599885,67963.0,67911.0,0.55939896]
[1770449183140,0.52599885,67963.0,67885.0,0.0002]
[1770449183141,0.52599885,67963.0,67939.0,0.014729]
[1770449183340,0.0002,68012.0,67915.0,0.014734]
[1770449183341,0.52599885,67979.0,67943.0,0.014728]
[1770449183648,0.52599885,67979.0,67952.0,0.014726]
[1770449183846,0.52599885,67979.0,67934.0,0.55939896]
[1770449183847,0.52599885,67979.0,67949.0,0.014726]
[1770449184041,0.52599885,67979.0,67920.0,0.16623315]
[1770449184042,0.52599885,67992.0,67940.0,0.55939896]
[1770449184245,0.52599885,67986.0,67940.0,0.55939896]
[1770449184547,0.54071885,67981.0,67947.0,0.014727]
[1770449184742,0.52599885,67981.0,67947.0,0.014727]
[1770449185044,0.52599885,67994.0,67971.0,0.014722]
[1770449185240,0.52599885,68011.0,67981.0,0.014719]
[1770449185438,0.52599885,68011.0,67989.0,0.014718]
[1770449185747,0.014716,67996.0,67964.0,0.014723]
[1770449186050,0.52599885,68002.0,67971.0,0.014722]
[1770449186235,0.014717,67992.0,67957.0,0.014725]
[1770449186437,0.52599885,67992.0,67939.0,0.53739896]
[1770449186641,0.52599885,67992.0,67951.0,0.014726]
[1770449186848,0.014712,68015.0,67946.0,0.55939896]
[1770449186849,0.52599885,67988.0,67946.0,0.55939896]
[1770449187046,0.52599885,67988.0,67951.0,0.55939896]
[1770449187444,0.52599885,68002.0,67952.0,0.07363]
[1770449187743,0.54071485,67996.0,67960.0,0.014724]
[1770449187939,0.014712,68017.0,67960.0,0.014724]
[1770449187940,0.52599885,67992.0,67960.0,0.014724]
[1770449188136,0.52599885,68006.0,67980.0,0.01472]
[1770449188338,0.52599885,68019.0,67982.0,0.073598]
[1770449188535,0.52599885,68032.0,67987.0,0.55939896]
[1770449188942,0.0002,68039.0,67987.0,0.55939896]
[1770449188943,0.54070885,68026.0,67990.0,0.014717]
[1770449189153,0.52599885,68026.0,67987.0,0.55939896]
[1770449189444,0.014907,68039.0,67995.0,0.55939896]
[1770449189637,0.52599885,68039.0,67995.0,0.55939896]
[1770449190042,0.52599885,68039.0,68005.0,0.014714]
[1770449190239,0.52599885,68039.0,68008.0,0.014713]
[1770449190548,0.54070585,68038.0,68003.0,0.014715]
[1770449190741,0.52599885,68038.0,68007.0,0.014714]
[1770449190946,0.52599885,68038.0,68011.0,0.014713]
[1770449191145,0.52599885,68038.0,68006.0,0.014714]
[1770449191346,0.52599885,68038.0,68014.0,0.014712]
[1770449191739,0.52599885,68038.0,68009.0,0.014713]
[1770449192044,0.52599885,68038.0,68004.0,0.014714]
[1770449192541,0.52599885,68036.0,68004.0,0.014714]
[1770449192847,0.52599885,68036.0,67997.0,0.55939896]
[1770449193046,0.52599885,68036.0,68008.0,0.014713]
[1770449193847,0.52599885,68036.0,68003.0,0.014715]
[1770449194039,0.52599885,68036.0,68006.0,0.014714]
[1770449194240,0.52599885,68036.0,67997.0,0.55939896]
[1770449194642,0.52599885,68036.0,68008.0,0.014714]
[1770449194837,0.52599885,68036.0,68012.0,0.014713]
[1770449195148,0.52599885,68036.0,67997.0,0.55939896]
[1770449195349,0.52599885,68036.0,68009.0,0.014713]
[1770449195546,0.014705,68047.0,68013.0,0.014713]
[1770449195737,0.014705,68047.0,67997.0,0.55939896]
[1770449195738,0.53294307,68044.0,67997.0,0.55939896]
[1770449196048,0.014701,68065.0,67999.0,0.014715]
[1770449196049,0.53294307,68036.0,67999.0,0.014715]
[1770449196237,0.53294307,68022.0,67984.0,0.014719]
[1770449196442,0.53294307,68019.0,67978.0,0.54850838]
[1770449196843,0.54765207,68028.0,67982.0,0.54850838]
[1770449197144,0.53294307,68020.0,67990.0,0.014717]
[1770449197348,0.53294307,68020.0,67994.0,0.014717]
[1770449197548,0.53294307,68020.0,67998.0,0.014716]
[1770449197848,0.53294307,68020.0,67982.0,0.54850838]
[1770449198042,0.53294307,68020.0,67995.0,0.014716]
[1770449198541,0.53294307,68020.0,67982.0,0.54850838]
[1770449198750,0.53294307,68020.0,67997.0,0.014716]
[1770449199144,0.53294307,68020.0,68001.0,0.014715]
[1770449199444,0.53294307,68020.0,67997.0,0.014716]
[1770449200250,0.53294307,68020.0,68000.0,0.014715]
[1770449200642,0.53294307,68033.0,68009.0,0.014713]
[1770449200951,0.53294307,68033.0,68007.0,0.014714]
[1770449201144,0.53294307,68033.0,67996.0,0.54850838]
[1770449201346,0.53294307,68033.0,68005.0,0.014714]
[1770449201748,0.53294307,68033.0,67996.0,0.54850838]
[1770449202151,0.53294307,68033.0,67984.0,0.56322738]
[1770449202347,0.01887589,68017.0,68004.0,0.014714]
[1770449202651,0.53294307,68033.0,68000.0,0.014715]
[1770449202850,0.53294307,68031.0,68003.0,0.014715]
[1770449203045,0.53294307,68031.0,68008.0,0.014714]
[1770449203446,0.53294307,68031.0,68004.0,0.014714]
[1770449203651,0.53294307,68031.0,68008.0,0.014714]
[1770449203854,0.53294307,68031.0,68004.0,0.014714]
[1770449204943,0.53294307,68031.0,68007.0,0.014714]
[1770449205952,0.53294307,68031.0,67987.0,0.54850838]
[1770449206250,0.53294307,68027.0,67997.0,0.014716]
[1770449206653,0.53294307,68027.0,68003.0,0.014715]
[1770449206949,0.53294307,68027.0,67999.0,0.014715]
[1770449209052,0.53294307,68027.0,68002.0,0.014715]
[1770449209549,0.53294307,68027.0,67990.0,0.54850838]
[1770449209853,0.53294307,68027.0,68005.0,0.014714]
[1770449210054,0.53294307,68039.0,68001.0,0.54850838]
[1770449210257,0.53294307,68039.0,68014.0,0.014712]
[1770449210456,0.53294307,68039.0,68015.0,0.014712]
[1770449210851,0.53294307,68039.0,68011.0,0.014713]
[1770449211052,0.53294307,68039.0,68014.0,0.014712]
[1770449211247,0.53294307,68050.0,68009.0,0.54850838]
[1770449211454,0.53294307,68050.0,68026.0,0.01471]
[1770449211655,0.014703,68056.0,68009.0,0.54850838]
[1770449211656,0.53294307,68069.0,68051.0,0.014704]
[1770449211952,0.53294307,68079.0,68043.0,0.014706]
[1770449212158,0.53294307,68071.0,68048.0,0.014705]
[1770449212358,0.53294307,68071.0,68036.0,0.54850838]
[1770449212860,0.53294307,68071.0,68043.0,0.014706]
[1770449213063,0.53294307,68071.0,68036.0,0.54850838]
[1770449213258,0.53294307,68067.0,68036.0,0.014707]
[1770449213561,0.53294307,68067.0,68042.0,0.014706]
[1770449214056,0.53294307,68067.0,68040.0,0.014707]
[1770449214249,0.53294307,68081.0,68037.0,0.54850838]
[1770449214454,0.53294307,68081.0,68042.0,0.54850838]
[1770449214654,0.53294307,68081.0,68054.0,0.014704]
[1770449216363,0.53394307,68081.0,68054.0,0.014704]
[1770449216758,0.53394307,68081.0,68057.0,0.014703]
[1770449217057,0.53294307,68081.0,68042.0,0.54850838]
[1770449217368,0.53294307,68081.0,68046.0,0.014705]
[1770449217659,0.53294307,68072.0,68024.0,0.54850838]
[1770449217961,0.014699,68074.0,68024.0,0.54850838]
[1770449217962,0.53294307,68086.0,68054.0,0.014704]
[1770449218660,0.014697,68085.0,68054.0,0.014704]
[1770449219363,0.53294307,68104.0,68055.0,0.54850838]
[1770449219665,0.53294307,68111.0,68079.0,0.014698]
[1770449219863,0.53294307,68106.0,68071.0,0.0147]
[1770449220175,0.53294307,68120.0,68083.0,0.54850838]
[1770449220459,0.53294307,68134.0,68105.0,0.014693]
[1770449220663,0.53294307,68134.0,68100.0,0.014694]
[1770449220865,0.53294307,68134.0,68095.0,0.54850838]
[1770449221063,0.53294307,68134.0,68099.0,0.54850838]
[1770449221264,0.53294307,68134.0,68108.0,0.014692]
[1770449221459,0.53294307,68134.0,68086.0,0.54850838]
[1770449221665,0.54763207,68124.0,68085.0,0.014697]
[1770449221964,0.54763207,68124.0,68074.0,0.54850838]
[1770449221965,0.53294307,68137.0,68104.0,0.54850838]
[1770449222169,0.53294307,68116.0,68087.0,0.16951034]
[1770449222373,0.014679,68169.0,68087.0,0.16951034]
[1770449222374,0.001,68120.0,68100.0,0.014694]
[1770449222560,0.53294307,68141.0,68084.0,0.54850838]
[1770449222763,0.53294307,68126.0,68084.0,0.54850838]
[1770449222962,0.54763407,68113.0,68072.0,0.0147]
[1770449223162,0.54763807,68095.0,68058.0,0.54850838]
[1770449223362,0.53294307,68095.0,68060.0,0.014702]
[1770449223561,0.53294307,68085.0,68043.0,0.014706]
[1770449223868,0.53294307,68085.0,68032.0,0.29122382]
[1770449223869,0.53294307,68066.0,68031.0,0.014708]
[1770449224060,0.53294307,68078.0,68033.0,0.073543]
[1770449224258,0.53294307,68111.0,68056.0,0.54850838]
[1770449224465,0.53294307,68111.0,68074.0,0.54850838]
[1770449224663,0.53294307,68129.0,68090.0,0.014696]
[1770449224870,0.53294307,68124.0,68088.0,0.014696]
[1770449225065,0.53294307,68124.0,68083.0,0.62199738]
[1770449225274,0.53294307,68128.0,68076.0,0.54850838]
[1770449225469,0.53294307,68126.0,68076.0,0.54850838]
[1770449225669,0.53294307,68120.0,68081.0,0.014698]
[1770449225970,0.55544519,68114.0,68063.0,0.62607418]
[1770449226171,0.55544519,68114.0,68063.0,0.55256318]
[1770449226570,0.55544519,68114.0,68076.0,0.55356318]
[1770449226765,0.55544519,68114.0,68076.0,0.001]
[1770449226966,0.0002,68137.0,68076.0,0.001]
[1770449226967,0.55544519,68111.0,68076.0,0.001]
[1770449227170,0.55544519,68111.0,68083.0,0.014697]
[1770449227371,0.55544519,68111.0,68076.0,0.001]
[1770449227372,0.55544519,68099.0,68076.0,0.001]
[1770449227563,0.55544519,68099.0,68042.0,0.21841786]
[1770449227767,0.55544519,68099.0,68031.0,0.0002]
[1770449227768,0.55544519,68073.0,68037.0,0.014707]
[1770449227969,0.014706,68045.0,68011.0,0.014713]
[1770449228169,0.014707,68038.0,68002.0,0.014715]
[1770449228368,0.55544519,68036.0,67994.0,0.55256318]
[1770449228573,0.55544519,68027.0,67989.0,0.014718]
[1770449228872,0.55544519,68045.0,67988.0,0.55256318]
[1770449229076,0.55715852,68040.0,68011.0,0.001]
[1770449229282,0.55715852,68032.0,67988.0,0.014718]
[1770449229475,0.1515735,68050.0,67977.0,0.95088]
[1770449229476,0.55715852,68028.0,67981.0,0.014719]
[1770449229671,0.55715852,68022.0,67989.0,0.014718]
[1770449229972,0.55715852,68022.0,67977.0,0.95088]
[1770449229973,0.55715852,68022.0,67986.0,0.62521932]
[1770449230177,0.55715852,68022.0,68002.0,0.014715]
[1770449230664,0.014702,68064.0,67977.0,0.95088]
[1770449230665,0.55715852,68037.0,68003.0,0.014715]
[1770449231472,0.55715852,68037.0,68008.0,0.014714]
[1770449231676,0.55715852,68037.0,68011.0,0.014713]
[1770449231869,0.55715852,68060.0,68017.0,0.014712]
[1770449232069,0.55715852,68054.0,68017.0,0.014712]
[1770449232378,0.01887589,68038.0,68021.0,0.014711]
[1770449232568,0.55715852,68054.0,68021.0,0.014711]
[1770449232764,0.55715852,68054.0,68016.0,0.014712]
[1770449233074,0.55715852,68054.0,68020.0,0.014711]
[1770449233268,0.55715852,68054.0,68003.0,0.53233632]
[1770449233470,0.55715852,68054.0,68008.0,0.55162532]
[1770449233777,0.001,68060.0,68000.0,0.073579]
[1770449233778,0.001,68060.0,68035.0,0.014708]
[1770449234077,0.55715852,68088.0,68051.0,0.014704]
[1770449234275,0.55715852,68088.0,68033.0,0.55162532]
[1770449234464,0.55715852,68066.0,68023.0,0.01471]
[1770449234665,0.55715852,68047.0,68005.0,0.0002]
[1770449234969,0.55715852,68047.0,68014.0,0.014712]
[1770449235165,0.55715852,68047.0,68013.0,0.014712]
[1770449235371,0.55715852,68047.0,68004.0,0.55162532]
[1770449235775,0.55715852,68047.0,68006.0,0.55162532]
[1770449235973,0.55715852,68061.0,68016.0,0.55162532]
[1770449236177,0.55715852,68061.0,67998.0,0.23209619]
[1770449236178,0.55715852,68061.0,68025.0,0.55162532]
[1770449236479,0.55715852,68073.0,68044.0,0.073531]
[1770449236779,0.0147,68070.0,68032.0,0.23208819]
[1770449236975,0.0147,68070.0,68025.0,0.16891576]
[1770449236976,0.55715852,68052.0,68025.0,0.16891576]
[1770449237179,0.55715852,68048.0,67989.0,0.07359]
[1770449237483,0.55715852,68041.0,68013.0,0.014713]
[1770449237787,0.55715852,68041.0,68014.0,0.014712]
[1770449238084,0.55715852,68041.0,68004.0,0.001]
[1770449238085,0.55715852,68041.0,68007.0,0.014714]
[1770449238387,0.55715852,68035.0,68000.0,0.014715]
[1770449238573,0.55715852,68033.0,68000.0,0.014715]
[1770449238774,0.55715852,68033.0,67999.0,0.014715]
[1770449238975,0.55715852,68027.0,67994.0,0.014717]
[1770449239975,0.55715852,68015.0,67977.0,0.01472]
[1770449240179,0.55715852,68013.0,67981.0,0.014719]
[1770449240378,0.55715852,68013.0,67976.0,4e-05]
[1770449240379,0.57187352,68002.0,67976.0,4e-05]
[1770449240680,0.55715852,67996.0,67955.0,0.55162532]
[1770449240876,0.57187752,67982.0,67955.0,0.0002]
[1770449241074,0.57188152,67966.0,67925.0,0.55162532]
[1770449241384,0.1662915,67990.0,67916.0,0.0002]
[1770449241385,0.55715852,67956.0,67916.0,0.0002]
[1770449241579,0.55715852,67949.0,67916.0,0.0002]
[1770449241885,0.55715852,67949.0,67924.0,0.014732]
[1770449242182,0.1662955,67970.0,67899.0,0.95128]
[1770449242183,0.1515735,67970.0,67912.0,0.62529932]
[1770449242379,0.0002,68024.0,67938.0,0.073645]